bitfinex-derivatives/quotes_BTCF0:USTF0_20260131
["timestamp","ask_amount","ask_price","bid_price","bid_amount"]
[1769823661451,0.28492032,84038.0,84019.0,0.28538007]
[1769823661652,0.28492032,84038.0,84019.0,0.01192]
[1769823662154,0.28492032,84038.0,84021.0,0.01192]
[1769823662343,0.28492032,84038.0,84022.0,0.27346007]
[1769823662547,0.10724,84041.0,84024.0,0.27346007]
[1769823662846,0.11556953,84040.0,84024.0,0.27346007]
[1769823663046,0.11556953,84039.0,84024.0,0.27346007]
[1769823663248,0.10724,84042.0,84024.0,0.27346007]
[1769823663446,0.1155928,84041.0,84024.0,0.27346007]
[1769823663653,0.1155928,84040.0,84024.0,0.27346007]
[1769823663962,0.28492032,84043.0,84024.0,0.27346007]
[1769823664146,0.11558969,84042.0,84024.0,0.27346007]
[1769823664455,0.11558969,84041.0,84024.0,0.27346007]
[1769823664652,0.11558969,84040.0,84024.0,0.27346007]
[1769823664854,0.11558969,84039.0,84024.0,0.27346007]
[1769823665045,0.10724,84043.0,84024.0,0.27346007]
[1769823665246,0.11562248,84042.0,84024.0,0.27346007]
[1769823665446,0.11562248,84041.0,84024.0,0.27346007]
[1769823665755,0.11562248,84040.0,84024.0,0.27346007]
[1769823665949,0.11562248,84039.0,84026.0,0.27346007]
[1769823666147,0.11562248,84038.0,84026.0,0.27346007]
[1769823666346,0.11562248,84037.0,84026.0,0.27346007]
[1769823666549,0.10724,84045.0,84026.0,0.27346007]
[1769823666748,0.11567438,84044.0,84026.0,0.27346007]
[1769823666950,0.11567438,84043.0,84026.0,0.27346007]
[1769823667155,0.11567438,84042.0,84026.0,0.27346007]
[1769823667357,0.11567438,84041.0,84026.0,0.27346007]
[1769823667546,0.11567438,84040.0,84026.0,0.27346007]
[1769823667747,0.11567438,84039.0,84026.0,0.27346007]
[1769823667947,0.10724,84045.0,84026.0,0.27346007]
[1769823668260,0.10916206,84044.0,84026.0,0.27346007]
[1769823668459,0.10916206,84043.0,84026.0,0.27346007]
[1769823668758,0.10916206,84042.0,84026.0,0.27346007]
[1769823668962,0.10916206,84041.0,84026.0,0.27346007]
[1769823669256,0.10916206,84040.0,84028.0,0.27213484]
[1769823669454,0.10724,84056.0,84035.0,0.21921162]
[1769823669659,0.29519881,84066.0,84048.0,0.21921162]
[1769823669660,0.10724,84066.0,84048.0,0.21921162]
[1769823670057,0.39482883,84066.0,84048.0,0.21921162]
[1769823670254,0.17182614,84066.0,84048.0,0.21921162]
[1769823670460,0.28758883,84065.0,84048.0,0.21921162]
[1769823671855,0.10724,84066.0,84048.0,0.21921162]
[1769823673164,0.63688,84068.0,84048.0,0.21921162]
[1769823673362,0.28758883,84073.0,84048.0,0.21921162]
[1769823673667,0.28758883,84071.0,84048.0,0.21921162]
[1769823674861,0.28758883,84071.0,84050.0,0.21933684]
[1769823675057,0.10724,84070.0,84050.0,0.21933684]
[1769823676263,0.28758883,84069.0,84050.0,0.21933684]
[1769823676461,0.28758883,84064.0,84037.0,0.22501554]
[1769823676763,0.28758883,84060.0,84035.0,0.011918]
[1769823676961,0.28758883,84058.0,84035.0,0.011918]
[1769823677560,0.29950383,84058.0,84034.0,0.10724]
[1769823679957,0.28758883,84058.0,84035.0,0.22103011]
[1769823681864,0.28758883,84058.0,84034.0,0.119158]
[1769823682065,0.28758883,84055.0,84034.0,0.10724]
[1769823685957,0.28758883,84055.0,84034.0,0.119158]
[1769823689469,0.28758883,84055.0,84035.0,0.2327652]
[1769823689669,0.28758883,84055.0,84036.0,0.011918]
[1769823692674,0.28758883,84055.0,84037.0,0.23701761]
[1769823692875,0.011915,84056.0,84037.0,0.23701761]
[1769823693676,0.29950383,84056.0,84037.0,0.23701761]
[1769823694268,0.10724,84055.0,84037.0,0.23701761]
[1769823694577,0.39482883,84055.0,84037.0,0.23701761]
[1769823696067,0.39482883,84055.0,84037.0,0.24893461]
[1769823696781,0.39482883,84055.0,84039.0,0.011917]
[1769823696981,0.29918442,84054.0,84037.0,0.23701761]
[1769823699778,0.27242032,84052.0,84031.0,0.0953075]
[1769823700174,0.27242032,84052.0,84031.0,0.011918]
[1769823703185,0.27242032,84052.0,84033.0,0.011918]
[1769823704591,0.27242032,84052.0,84033.0,0.26151463]
[1769823705983,0.27242032,84052.0,84035.0,0.011918]
[1769823706179,0.27242032,84052.0,84037.0,0.011917]
[1769823720697,0.27242032,84052.0,84040.0,0.20119628]
[1769823720993,0.27242032,84052.0,84033.0,0.1072255]
[1769823721188,0.27242032,84052.0,84033.0,0.011918]
[1769823722690,0.27242032,84052.0,84031.0,0.10724]
[1769823723087,0.27242032,84052.0,84030.0,0.011918]
[1769823724396,0.27242032,84052.0,84030.0,0.21311428]
[1769823725093,0.27242032,84052.0,84033.0,0.29342261]
[1769823725399,0.27242032,84052.0,84040.0,0.20119628]
[1769823725990,0.27242032,84052.0,84034.0,0.011918]
[1769823726190,0.27242032,84052.0,84033.0,0.29342261]
[1769823726996,0.27242032,84052.0,84034.0,0.011918]
[1769823734791,0.27242032,84052.0,84037.0,0.28836126]
[1769823734991,0.10724,84055.0,84040.0,0.20119628]
[1769823735305,0.27772021,84054.0,84040.0,0.20119628]
[1769823735600,0.0665283,84062.0,84040.0,0.20119628]
[1769823735601,0.27772021,84059.0,84040.0,0.48955754]
[1769823735906,0.27772021,84059.0,84041.0,0.28836126]
[1769823736100,0.27772021,84059.0,84049.0,0.20119628]
[1769823736802,0.10724,84060.0,84049.0,0.20119628]
[1769823739401,0.27772021,84069.0,84053.0,0.30027626]
[1769823740104,0.10724,84070.0,84059.0,0.20119628]
[1769823740401,0.10724,84070.0,84055.0,0.30027626]
[1769823743904,0.27772021,84073.0,84055.0,0.30027626]
[1769823745003,0.27772021,84088.0,84070.0,0.28836126]
[1769823745298,0.27772021,84088.0,84071.0,0.28836126]
[1769823746010,0.27772021,84088.0,84072.0,0.30027326]
[1769823746210,0.10724,84095.0,84067.0,0.51304]
[1769823746211,0.27772021,84094.0,84074.0,0.30027326]
[1769823749803,0.27772021,84094.0,84077.0,0.30027326]
[1769823750003,0.27772021,84094.0,84077.0,0.28836126]
[1769823750410,0.27772021,84094.0,84081.0,0.011911]
[1769823750704,0.27772021,84094.0,84078.0,0.011912]
[1769823751810,0.27772021,84094.0,84078.0,0.30027326]
[1769823752509,0.27772021,84094.0,84077.0,0.1072]
[1769823763114,0.27772021,84094.0,84078.0,0.011912]
[1769823763315,0.2755505,84098.0,84083.0,0.011911]
[1769823763522,0.1072,84099.0,84085.0,0.30837617]
[1769823763821,0.2755505,84102.0,84085.0,0.30837617]
[1769823765009,0.1072,84105.0,84089.0,0.01191]
[1769823765208,0.1072,84105.0,84089.0,0.30837517]
[1769823765521,0.1072,84105.0,84093.0,0.29646517]
[1769823765913,0.2755505,84110.0,84093.0,0.29646517]
[1769823769724,0.2755505,84110.0,84091.0,0.01191]
[1769823770317,0.2755505,84110.0,84091.0,0.30837517]
[1769823776630,0.2755505,84119.0,84096.0,0.30837417]
[1769823777420,0.2755505,84119.0,84099.0,0.011909]
[1769823778525,0.2755505,84119.0,84096.0,0.30837417]
[1769823782126,0.011906,84120.0,84096.0,0.30837417]
[1769823782331,0.2755505,84115.0,84092.0,0.01191]
[1769823783825,0.2755505,84115.0,84092.0,0.30837517]
[1769823785335,0.2755505,84115.0,84096.0,0.011909]
[1769823785629,0.2755505,84115.0,84098.0,0.30837417]
[1769823789333,0.2755505,84115.0,84098.0,0.29646517]
[1769823789724,0.2755505,84115.0,84099.0,0.2825007]
[1769823790529,0.2755505,84115.0,84099.0,0.2944097]
[1769823790733,0.28895875,84122.0,84102.0,0.2825007]
[1769823791838,0.28895875,84122.0,84098.0,0.4015697]
[1769823792037,0.28895875,84120.0,84099.0,0.2825007]
[1769823794932,0.28895875,84120.0,84101.0,0.2825007]
[1769823795137,0.28895875,84126.0,84105.0,0.2825007]
[1769823795931,0.28895875,84126.0,84106.0,0.011908]
[1769823796134,0.28895875,84126.0,84108.0,0.011907]
[1769823796340,0.28895875,84133.0,84117.0,0.2825007]
[1769823796540,0.28895875,84133.0,84101.0,0.011908]
[1769823796541,0.28895875,84133.0,84112.0,0.2825007]
[1769823798134,0.28895875,84133.0,84113.0,0.011907]
[1769823802445,0.28895875,84133.0,84113.0,0.2944077]
[1769823805147,0.28895875,84133.0,84116.0,0.2825007]
[1769823805340,0.28895875,84133.0,84117.0,0.011906]
[1769823812346,0.28895875,84142.0,84122.0,0.2825007]
[1769823812552,0.28895875,84142.0,84108.0,0.011907]
[1769823812553,0.28895875,84146.0,84129.0,0.2944047]
[1769823819656,0.28895875,84146.0,84131.0,0.011904]
[1769823821949,0.28895875,84146.0,84128.0,0.011905]
[1769823830867,0.28895875,84146.0,84124.0,0.10716]
[1769823832071,0.28895875,84146.0,84128.0,0.011904]
[1769823834161,0.28895875,84146.0,84122.0,0.0953075]
[1769823834366,0.28895875,84146.0,84119.0,0.2024275]
[1769823834567,0.2721068,84144.0,84123.0,0.011905]
[1769823835767,0.2721068,84144.0,84127.0,0.011905]
[1769823841374,0.2721068,84142.0,84127.0,0.011905]
[1769823841968,0.2721068,84142.0,84124.0,0.011905]
[1769823843071,0.10712,84143.0,84119.0,0.24995521]
[1769823843072,0.2721068,84140.0,84119.0,0.10712]
[1769823843563,0.2721068,84135.0,84114.0,0.55287521]
[1769823843772,0.2721068,84135.0,84114.0,0.41004]
[1769823843975,0.2721068,84133.0,84105.0,0.10712]
[1769823844174,0.2721068,84126.0,84105.0,0.10712]
[1769823844380,0.2721068,84126.0,84102.0,0.011908]
[1769823844874,0.2721068,84123.0,84099.0,0.14283521]
[1769823845074,0.2721068,84121.0,84093.0,0.10712]
[1769823846070,0.2721068,84121.0,84100.0,0.011909]
[1769823851878,0.2721068,84121.0,84102.0,0.011908]
[1769823853077,0.2721068,84121.0,84108.0,0.011907]
[1769823854077,0.2721068,84121.0,84105.0,0.011908]
[1769823862983,0.10712,84122.0,84084.0,0.42726994]
[1769823862984,0.27183921,84112.0,84084.0,0.42726994]
[1769823863183,0.27183921,84110.0,84085.0,0.14283521]
[1769823863382,0.28374621,84110.0,84085.0,0.14283521]
[1769823863685,0.28374621,84110.0,84089.0,0.01191]
[1769823865793,0.27183921,84103.0,84072.0,0.14283521]
[1769823865993,0.27183921,84099.0,84081.0,0.011911]
[1769823868697,0.27183921,84099.0,84083.0,0.011911]
[1769823869990,0.37899921,84099.0,84083.0,0.011911]
[1769823870901,0.27183921,84098.0,84083.0,0.011911]
[1769823875793,0.27183921,84098.0,84085.0,0.011911]
[1769823876893,0.27183921,84098.0,84087.0,0.01191]
[1769823879398,0.27183921,84098.0,84084.0,0.011911]
[1769823885806,0.10716,84099.0,84084.0,0.011911]
[1769823886006,0.10716,84099.0,84084.0,0.29165505]
[1769823886508,0.29306483,84098.0,84084.0,0.011911]
[1769823886999,0.29306483,84098.0,84086.0,0.01191]
[1769823888196,0.10716,84100.0,84091.0,0.01191]
[1769823888496,0.29306483,84109.0,84093.0,0.011909]
[1769823888702,0.29306483,84107.0,84093.0,0.011909]
[1769823890013,0.10716,84106.0,84093.0,0.011909]
[1769823890216,0.29306483,84105.0,84093.0,0.011909]
[1769823902220,0.29306483,84105.0,84083.0,0.14283521]
[1769823902221,0.29306483,84105.0,84081.0,0.14283521]
[1769823903008,0.29306483,84105.0,84088.0,0.01191]
[1769823904212,0.29306483,84105.0,84090.0,0.01191]
[1769823906314,0.29306483,84105.0,84083.0,0.011911]
[1769823906515,0.29306483,84105.0,84085.0,0.011911]
[1769823914019,0.28374974,84103.0,84083.0,0.011911]
[1769823915615,0.28374974,84103.0,84085.0,0.011911]
[1769823920626,0.28374974,84103.0,84082.0,0.011911]
[1769823920822,0.28374974,84098.0,84079.0,0.011911]
[1769823921022,0.28374974,84096.0,84079.0,0.011911]
[1769823929234,0.28374974,84096.0,84081.0,0.011911]
[1769823939541,0.28374974,84096.0,84083.0,0.011911]
[1769823959860,0.28374974,84096.0,84080.0,0.011911]
[1769823962056,0.76672,84097.0,84059.0,0.10716]
[1769823962057,0.27962782,84079.0,84059.0,0.10716]
[1769823962252,0.27962782,84077.0,84060.0,0.011914]
[1769823962565,0.27962782,84075.0,84060.0,0.011914]
[1769823962755,0.10926204,84074.0,84060.0,0.011914]
[1769823962960,0.27962782,84073.0,84059.0,0.10716]
[1769823963151,0.27962782,84071.0,84059.0,0.10716]
[1769823963353,0.27962782,84071.0,84060.0,0.011914]
[1769823966667,0.27962782,84071.0,84055.0,0.011915]
[1769823966866,0.27962782,84071.0,84051.0,0.011915]
[1769823972567,0.11457676,84070.0,84051.0,0.011915]
[1769823972772,0.27554065,84068.0,84051.0,0.011915]
[1769823973065,0.27554065,84066.0,84051.0,0.011915]
[1769823973372,0.27554065,84064.0,84051.0,0.011915]
[1769823973573,0.27554065,84064.0,84049.0,0.1072]
[1769823974169,0.27554065,84064.0,84048.0,0.011916]
[1769823976876,0.27554065,84064.0,84043.0,0.0001264]
[1769823978176,0.27554065,84064.0,84047.0,0.011916]
[1769823979073,0.011914,84063.0,84043.0,0.0001264]
[1769823979373,0.27554065,84062.0,84040.0,0.011917]
[1769823980170,0.27554065,84060.0,84040.0,0.011917]
[1769823981378,0.27554065,84058.0,84040.0,0.011917]
[1769823985481,0.11441477,84057.0,84040.0,0.011917]
[1769823985683,0.27554065,84056.0,84040.0,0.011917]
[1769823986687,0.27554065,84056.0,84035.0,0.011918]
[1769823987776,0.27554065,84056.0,84037.0,0.011917]
[1769823991278,0.27554065,84054.0,84037.0,0.011917]
[1769823991873,0.27554065,84054.0,84025.0,0.1072]
[1769823992074,0.27554065,84054.0,84037.0,0.011917]
[1769823992287,0.27554065,84048.0,84025.0,0.1072]
[1769823992482,0.27554065,84046.0,84026.0,0.011919]
[1769823992680,0.27554065,84044.0,84026.0,0.011919]
[1769823993289,0.27554065,84044.0,84028.0,0.011919]
[1769823999985,0.11383636,84043.0,84028.0,0.011919]
[1769824000185,0.11383636,84043.0,84014.0,0.10724]
[1769824000186,0.27957055,84041.0,84014.0,0.10724]
[1769824000394,0.27957055,84038.0,84020.0,0.01192]
[1769824001189,0.27957055,84038.0,84014.0,0.10724]
[1769824001387,0.27957055,84028.0,84008.0,0.011921]
[1769824001583,0.27957055,84026.0,84008.0,0.011921]
[1769824002198,0.27957055,84026.0,84004.0,0.10724]
[1769824002199,0.27957055,84026.0,84005.0,0.011922]
[1769824002386,0.27957055,84024.0,84004.0,0.10724]
[1769824002696,0.27957055,84022.0,84003.0,0.00015131]
[1769824002894,0.27957055,84020.0,84003.0,0.00015131]
[1769824003495,0.11374579,84019.0,84003.0,0.00015131]
[1769824003694,0.27957055,84020.0,84003.0,0.00015131]
[1769824003998,0.27957055,84018.0,84003.0,0.00015131]
[1769824004199,0.10724,84017.0,84003.0,0.00015131]
[1769824004384,0.27957055,84015.0,84003.0,0.00015131]
[1769824005291,0.27957055,84015.0,83993.0,0.011924]
[1769824005589,0.27957055,84013.0,83992.0,0.011924]
[1769824006091,0.27957055,84013.0,84003.0,0.001]
[1769824006290,0.00012181,84012.0,83992.0,0.011924]
[1769824006484,0.27957055,84011.0,83992.0,0.011924]
[1769824006788,0.27957055,84009.0,83980.0,0.29014804]
[1769824007189,0.27957055,84002.0,83973.0,0.29014804]
[1769824007391,0.27957055,84000.0,83978.0,0.011926]
[1769824007592,0.38681055,83999.0,83982.0,0.30207304]
[1769824008091,0.27971586,83998.0,83982.0,0.30207304]
[1769824009999,0.00014531,83998.0,83982.0,0.30207304]
[1769824010499,0.00014531,83998.0,83985.0,0.29014804]
[1769824010690,0.10333483,83999.0,83979.0,0.29014804]
[1769824010895,0.10333483,83999.0,83981.0,0.29014804]
[1769824011297,0.10333483,83999.0,83983.0,0.29014804]
[1769824011799,0.0001324,83998.0,83983.0,0.29014804]
[1769824012797,0.0001324,83998.0,83980.0,0.10728]
[1769824012798,0.0001324,83998.0,83988.0,0.29014804]
[1769824015201,0.10728,84005.0,83988.0,0.29014804]
[1769824015403,0.10728,84005.0,83990.0,0.29014804]
[1769824015595,0.10728,84009.0,83990.0,0.29014804]
[1769824017000,0.10728,84009.0,83992.0,0.29014804]
[1769824017400,0.10728,84009.0,83994.0,0.29014804]
[1769824017609,0.10728,84009.0,83999.0,0.30207104]
[1769824018801,0.27957055,84017.0,83999.0,0.30207104]
[1769824018994,0.27957055,84015.0,83999.0,0.30207104]
[1769824019596,0.27957055,84019.0,84002.0,0.30207004]
[1769824020098,0.27957055,84019.0,84004.0,0.011922]
[1769824020298,0.27957055,84023.0,84007.0,0.30207004]
[1769824020604,0.10728,84026.0,84007.0,0.30207004]
[1769824021006,0.38685055,84026.0,84007.0,0.30207004]
[1769824021304,0.27957055,84025.0,84007.0,0.29014804]
[1769824022494,0.27957055,84025.0,84003.0,0.011922]
[1769824024102,0.27957055,84025.0,84006.0,0.011922]
[1769824025404,0.27957055,84023.0,84006.0,0.011922]
[1769824026909,0.10728,84026.0,84006.0,0.30592456]
[1769824027098,0.11352098,84025.0,84006.0,0.30592456]
[1769824027299,0.06543649,84034.0,84003.0,0.10728]
[1769824027300,0.11285069,84024.0,84018.0,0.29400256]
[1769824027504,0.27948996,84034.0,84018.0,0.29400256]
[1769824029904,0.27948996,84039.0,84018.0,0.29400256]
[1769824030102,0.27948996,84039.0,84020.0,0.29400256]
[1769824030408,0.10728,84040.0,84026.0,0.29400256]
[1769824030611,0.10728,84045.0,84030.0,0.011918]
[1769824030808,0.10728,84045.0,84030.0,0.30592056]
[1769824031810,0.27948996,84044.0,84030.0,0.011918]
[1769824032009,0.27948996,84044.0,84027.0,0.30592156]
[1769824036211,0.27948996,84044.0,84027.0,0.011919]
[1769824036426,0.27948996,84044.0,84024.0,0.011919]
[1769824037211,0.27948996,84044.0,84021.0,0.01192]
[1769824038213,0.27948996,84044.0,84023.0,0.011919]
[1769824039423,0.1113642,84043.0,84023.0,0.011919]
[1769824039615,0.27948996,84041.0,84023.0,0.011919]
[1769824040014,0.27948996,84039.0,84023.0,0.011919]
[1769824040215,0.27948996,84039.0,84017.0,0.10728]
[1769824040414,0.27948996,84039.0,84020.0,0.01192]
[1769824041214,0.11139032,84038.0,84020.0,0.01192]
[1769824041416,0.27948996,84036.0,84020.0,0.01192]
[1769824041711,0.27948996,84034.0,84020.0,0.01192]
[1769824041910,0.27948996,84034.0,84017.0,0.10728]
[1769824041911,0.81344996,84034.0,84017.0,0.01192]
[1769824042221,0.27948996,84030.0,84010.0,0.011921]
[1769824042423,0.27948996,84028.0,84007.0,0.10724]
[1769824042724,0.27948996,84024.0,84002.0,0.011922]
[1769824042918,0.27948996,84022.0,83998.0,0.011923]
[1769824043223,0.27948996,84020.0,84000.0,0.011923]
[1769824043523,0.27948996,84019.0,84000.0,0.011923]
[1769824046221,0.11152548,84018.0,84000.0,0.011923]
[1769824046423,0.27948996,84019.0,84000.0,0.011923]
[1769824046625,0.27948996,84017.0,84000.0,0.011923]
[1769824048934,0.11157356,84016.0,84000.0,0.011923]
[1769824049239,0.27948996,84017.0,83996.0,0.011923]
[1769824049440,0.27948996,84015.0,83996.0,0.011923]
[1769824051132,0.75900996,84020.0,83999.0,0.29400256]
[1769824051436,0.27948996,84018.0,83998.0,0.011923]
[1769824051641,0.27948996,84016.0,83998.0,0.011923]
[1769824052236,0.27948996,84016.0,84000.0,0.011923]
[1769824052534,0.1115548,84015.0,83996.0,0.011923]
[1769824052732,0.39104594,84014.0,83996.0,0.011923]
[1769824052930,0.27948996,84014.0,83996.0,0.011923]
[1769824053639,0.27948996,84014.0,83998.0,0.011923]
[1769824057838,0.27948996,84014.0,83994.0,0.40084256]
[1769824057839,0.29337004,84020.0,84000.0,0.29360256]
[1769824058031,0.11150998,84019.0,84006.0,0.28349827]
[1769824058228,0.75180949,84024.0,84008.0,0.011921]
[1769824058432,0.21770254,84023.0,84008.0,0.011921]
[1769824058634,0.10728,84023.0,84009.0,0.27157627]
[1769824059033,0.68884,84026.0,84009.0,0.27157627]
[1769824059231,0.10728,84023.0,84009.0,0.27157627]
[1769824059839,0.10728,84023.0,84010.0,0.28349727]
[1769824061646,0.27364949,84027.0,84010.0,0.28349727]
[1769824061845,0.38092949,84026.0,84010.0,0.28349727]
[1769824063544,0.38092949,84026.0,84010.0,0.48481278]
[1769824064845,0.38092949,84026.0,84011.0,0.27157627]
[1769824065333,0.27364949,84025.0,84011.0,0.27157627]
[1769824066540,0.27364949,84025.0,84010.0,0.21323651]
[1769824066736,0.27364949,84025.0,84007.0,0.28349827]
[1769824067545,0.27364949,84025.0,84007.0,0.011922]
[1769824068150,0.27364949,84023.0,84004.0,0.10728]
[1769824068841,0.27364949,84023.0,84003.0,0.011922]
[1769824069447,0.11037624,84022.0,83998.0,0.011923]
[1769824069647,0.27364949,84020.0,83998.0,0.011923]
[1769824071252,0.27364949,84018.0,83998.0,0.011923]
[1769824072345,0.11047189,84017.0,83998.0,0.011923]
[1769824072547,0.27364949,84015.0,83998.0,0.011923]
[1769824072747,0.27364949,84013.0,83994.0,0.119203]
[1769824073549,0.27364949,84011.0,83994.0,0.119203]
[1769824074455,0.27364949,84011.0,83996.0,0.011923]
[1769824080653,0.27364949,84011.0,83992.0,0.011924]
[1769824080858,0.27364949,84011.0,83989.0,0.10728]
[1769824081054,0.27364949,84009.0,83989.0,0.10728]
[1769824081250,0.27364949,84009.0,83990.0,0.011924]
[1769824081658,0.27364949,84009.0,83989.0,0.10728]
[1769824081852,0.27364949,84009.0,83992.0,0.011924]
[1769824082359,0.27364949,84009.0,83989.0,0.011924]
[1769824082954,0.011921,84014.0,83989.0,0.011924]
[1769824082955,0.27364949,84007.0,83989.0,0.011924]
[1769824083154,0.27364949,84005.0,83989.0,0.011924]
[1769824085254,0.10728,84006.0,83991.0,0.011924]
[1769824085458,0.68212,84009.0,83990.0,0.20131551]
[1769824085656,0.10728,84008.0,83991.0,0.27157627]
[1769824085851,0.10728,84008.0,83993.0,0.27157627]
[1769824086749,0.10728,84007.0,83993.0,0.27157627]
[1769824087057,0.692,84011.0,83996.0,0.29316011]
[1769824087255,0.10728,84008.0,83996.0,0.29316011]
[1769824087654,0.10728,84008.0,83990.0,0.30859551]
[1769824087655,0.10728,84008.0,84000.0,0.29316011]
[1769824088359,0.10728,84008.0,83990.0,0.30859551]
[1769824088360,0.10728,84014.0,84003.0,0.011922]
[1769824088765,0.29133992,84020.0,84003.0,0.011922]
[1769824089062,0.69252,84018.0,84003.0,0.011922]
[1769824089261,0.2175701,84017.0,84005.0,0.30508211]
[1769824089568,0.10728,84019.0,84011.0,0.011921]
[1769824089767,0.10728,84022.0,84011.0,0.011921]
[1769824090666,0.29133992,84021.0,84002.0,0.119202]
[1769824092361,0.29133992,84021.0,84006.0,0.011922]
[1769824098568,0.29133992,84021.0,84003.0,0.011922]
[1769824101577,0.29133992,84019.0,84003.0,0.011922]
[1769824101777,0.29133992,84017.0,84003.0,0.011922]
[1769824101975,0.29133992,84015.0,84002.0,0.10728]
[1769824102278,0.29133992,84015.0,84006.0,0.011922]
[1769824103582,0.29133992,84015.0,84008.0,0.011922]
[1769824103879,0.29133992,84015.0,84005.0,0.011922]
[1769824108682,0.29133992,84015.0,84007.0,0.011922]
[1769824115788,0.29133992,84015.0,84004.0,0.011922]
[1769824115989,0.29133992,84015.0,84006.0,0.011922]
[1769824122393,0.10728,84022.0,84000.0,0.20131551]
[1769824122394,0.10728,84022.0,84007.0,0.27031242]
[1769824122594,0.10726394,84021.0,84010.0,0.20131551]
[1769824122900,0.10726394,84020.0,84010.0,0.20131551]
[1769824123095,0.27541639,84021.0,84009.0,0.011921]
[1769824123399,0.10489699,84020.0,84009.0,0.011921]
[1769824123599,0.27541639,84021.0,84009.0,0.011921]
[1769824123899,0.10489447,84020.0,84009.0,0.011921]
[1769824124098,0.27541639,84021.0,84007.0,0.27031242]
[1769824124099,0.27541639,84021.0,84011.0,0.011921]
[1769824124301,0.10489447,84020.0,84011.0,0.011921]
[1769824124497,0.27541639,84021.0,84011.0,0.011921]
[1769824128100,0.27541639,84015.0,83989.0,0.23717616]
[1769824128298,0.27541639,84013.0,83989.0,0.011924]
[1769824128605,0.27541639,84011.0,83989.0,0.011924]
[1769824128805,0.10728,84012.0,84002.0,0.011922]
[1769824129206,0.10728,84012.0,84003.0,0.011922]
[1769824129506,0.27541639,84022.0,84004.0,0.27031242]
[1769824129802,0.10843014,84021.0,84004.0,0.27031242]
[1769824130002,0.10843014,84020.0,84004.0,0.27031242]
[1769824130198,0.27541639,84022.0,84004.0,0.27031242]
[1769824131505,0.27541639,84022.0,84015.0,0.011921]
[1769824132011,0.10728,84023.0,84015.0,0.011921]
[1769824132497,0.10728,84023.0,84007.0,0.37759242]
[1769824132498,0.10728,84023.0,84011.0,0.011921]
[1769824133097,0.27541639,84022.0,84011.0,0.011921]
[1769824134104,0.27541639,84022.0,84009.0,0.011921]
[1769824144009,0.10571093,84021.0,84009.0,0.011921]
[1769824144215,0.27541639,84022.0,84009.0,0.011921]
[1769824144413,0.10571082,84021.0,84009.0,0.011921]
[1769824144613,0.27541639,84022.0,84009.0,0.011921]
[1769824144809,0.27541639,84020.0,84007.0,0.10728]
[1769824145513,0.27541639,84020.0,84008.0,0.011922]
[1769824148310,0.27541639,84020.0,84007.0,0.10728]
[1769824149411,0.27541639,84020.0,83995.0,0.25022966]
[1769824149611,0.29505851,84010.0,83989.0,0.14298966]
[1769824149818,0.29505851,84008.0,83988.0,0.15491366]
[1769824150011,0.30698051,84008.0,83987.0,0.25022966]
[1769824150209,0.30698051,84008.0,83986.0,0.14298966]
[1769824150416,0.30698051,84008.0,83983.0,0.15491466]
[1769824150609,0.30698051,84008.0,83983.0,0.011925]
[1769824151211,0.29505851,84008.0,83971.0,0.14298966]
[1769824151518,0.10724,84009.0,83974.0,0.27825708]
[1769824151519,0.29505851,84005.0,83974.0,0.27825708]
[1769824151718,0.29505851,84005.0,83984.0,0.011925]
[1769824157320,0.29505851,84005.0,83984.0,0.27825708]
[1769824157523,0.29505851,84005.0,83990.0,0.011924]
[1769824158519,0.29505851,84005.0,83994.0,0.011923]
[1769824158720,0.10724,84009.0,83997.0,0.011923]
[1769824158721,0.29505851,84008.0,83997.0,0.011923]
[1769824159225,0.29505851,84008.0,83994.0,0.011924]
[1769824161419,0.10724,84009.0,83991.0,0.27825708]
[1769824161619,0.10724,84009.0,83995.0,0.27825708]
[1769824161821,0.10728,84018.0,83995.0,0.27825708]
[1769824162923,0.10728,84018.0,83997.0,0.011923]
[1769824163536,0.29505851,84017.0,83997.0,0.011923]
[1769824164439,0.29505851,84017.0,83997.0,0.29018008]
[1769824171235,0.29505851,84017.0,83999.0,0.011923]
[1769824171636,0.29505851,84017.0,83994.0,0.011924]
[1769824171943,0.29505851,84017.0,83996.0,0.011923]
[1769824172139,0.29505851,84015.0,83993.0,0.10728]
[1769824172344,0.29505851,84009.0,83982.0,0.14298966]
[1769824172643,0.29505851,84009.0,83976.0,0.14298966]
[1769824172644,0.29505851,84007.0,83976.0,0.14298966]
[1769824172838,0.29505851,84007.0,83977.0,0.27825708]
[1769824173036,0.29505851,84007.0,83990.0,0.011924]
[1769824175935,0.29505851,84007.0,83993.0,0.011924]
[1769824176137,0.10728,84008.0,83992.0,0.27825708]
[1769824176642,0.10331264,84008.0,83997.0,0.29425752]
[1769824176948,0.29505851,84016.0,84000.0,0.011923]
[1769824178247,0.29505851,84016.0,83997.0,0.011923]
[1769824178445,0.29505851,84016.0,83996.0,0.10728]
[1769824179642,0.30697951,84016.0,83996.0,0.10728]
[1769824180345,0.30697951,84016.0,83990.0,0.011924]
[1769824180538,0.27371007,84013.0,83987.0,0.011925]
[1769824180740,0.27371007,84009.0,83985.0,0.10728]
[1769824181036,0.27371007,84007.0,83986.0,0.27952321]
[1769824181249,0.10728,84006.0,83991.0,0.27952321]
[1769824181446,0.10728,84006.0,83995.0,0.011923]
[1769824181638,0.10728,84006.0,83991.0,0.27952321]
[1769824181842,0.10728,84006.0,84000.0,0.011923]
[1769824182150,0.10728,84006.0,83997.0,0.29144621]
[1769824182348,0.10728,84016.0,83997.0,0.27952321]
[1769824183250,0.10728,84016.0,84003.0,0.011922]
[1769824184346,0.27371007,84022.0,83997.0,0.27952321]
[1769824184555,0.27371007,84020.0,83984.0,0.27952321]
[1769824184854,0.10486917,84019.0,83988.0,0.27952321]
[1769824185044,0.10486917,84018.0,83994.0,0.27952321]
[1769824185239,0.10486917,84017.0,83994.0,0.27952321]
[1769824185445,0.27371007,84019.0,83995.0,0.011923]
[1769824185749,0.27371007,84019.0,83987.0,0.17873707]
[1769824185944,0.27371007,84017.0,83990.0,0.20139436]
[1769824186156,0.27371007,84015.0,83990.0,0.20139436]
[1769824187854,0.27371007,84013.0,83989.0,0.011924]
[1769824190149,0.27371007,84013.0,83988.0,0.50944]
[1769824190354,0.27371007,84011.0,83988.0,0.50944]
[1769824190661,0.27371007,84009.0,83988.0,0.50944]
[1769824190843,0.27371007,84007.0,83988.0,0.50944]
[1769824191450,0.27371007,84005.0,83988.0,0.50944]
[1769824191957,0.27371007,84005.0,83989.0,0.10728]
[1769824192249,0.27371007,84003.0,83989.0,0.10728]